Workbook

Sheet Estimating Start-Up Capital
B3: Estimating Start-Up Capital
B4: Your Company, Inc.
B5: =NOW() -> 2010-04-19T19:56:16.900
C8: Monthly | D8: Cash Needed | E8: % of
C9: Expenses | D9: to Start | E9: Total | G9: Source of Estimate
B10: MONTHLY COSTS
B11: Salary of owner-manager | C11: $500 | D11: =IF(C11,+C11*2,"") -> $1,000 | E11: =IF(SUM($D$41),D11/$D$41,"") -> 3.3%
B12: All other salaries and wages | C12: 1,000 | D12: =IF(C12,+C12*3,"") -> 3,000 | E12: 9.8%
B13: Rent | C13: 500 | D13: 1,500 | E13: 4.9%
B14: Advertising | C14: 200 | D14: 600 | E14: 2.0%
B15: Delivery expense | C15: 100 | D15: 300 | E15: 1.0%
B16: Supplies | C16: 100 | D16: 300 | E16: 1.0%
B17: Telephone | C17: 100 | D17: 300 | E17: 1.0% | G17: Phone company
B18: Other utilities | C18: 200 | D18: 600 | E18: 2.0%
B19: Insurance | C19: 200 | D19: =IF(C19,+C19,"") -> 200 | E19: 0.7%
B20: Taxes, including social security | C20: 300 | D20: =IF(C20,+C20*4,"") -> 1,200 | E20: 3.9% | G20: Accountant
B21: Interest | C21: 250 | D21: =IF(C21,+C21*3,"") -> 750 | E21: 2.5%
B22: Maintenance | C22: 100 | D22: =IF(C22,+C22*3,"") -> 300 | E22: 1.0%
B23: Legal and other professional fees | C23: 100 | D23: =IF(C23,+C23*3,"") -> 300 | E23: 1.0% | G23: Attorney
B24: Miscellaneous | C24: 100 | D24: =IF(C24,+C24*3,"") -> 300 | E24: 1.0%
B25: Subtotal | D25: =IF(SUM(D11:D24),SUM(D11:D24),"") -> $10,650 | E25: 34.8%
B28: ONE-TIME COSTS
B29: Fixtures and Equipment | D29: $10,000 | E29: =IF(D29,+D29/D41,"") -> 32.7%
B30: Decorating and remodeling | D30: 1,000 | E30: =IF(D30,+D30/D41,"") -> 3.3%
B31: Installation charges | D31: 500 | E31: =IF(D31,+D31/D41,"") -> 1.6%
B32: Starting inventory | D32: 5,000 | E32: =IF(D32,+D32/D41,"") -> 16.3%
B33: Deposits with public utilities | D33: 1,000 | E33: =IF(D33,+D33/D41,"") -> 3.3% | G33: Electric company
B34: Legal and other professional fees | D34: 500 | E34: =IF(D34,+D34/D41,"") -> 1.6%
B35: Licenses and permits | D35: 500 | E35: =IF(D35,+D35/D41,"") -> 1.6%
B36: Advertising and promotion for opening | D36: 500 | E36: =IF(D36,+D36/D41,"") -> 1.6%
B37: Cash | D37: 750 | E37: =IF(D37,+D37/D41,"") -> 2.5%
B38: Other | D38: 200 | E38: =IF(D38,+D38/D41,"") -> 0.7%
B39: Subtotal | D39: =IF(SUM(D29:D38),SUM(D29:D38),"") -> $19,950 | E39: =IF(SUM(D41),D39/D41,"") -> 65.2%
B41: TOTAL ESTIMATED START-UP CAPITAL | D41: =IF(SUM(D11:D24,D29:D38),SUM(D11:D24,D29:D38),"") -> $30,600 | E41: =IF(SUM(D41),SUM(E11:E24)+SUM(E29:E38),"") -> 100%
